{"text_format":"1","workbook":"xlsx","n_sheets":5,"sheets":["NOMBRE","BM18","BM18A","Control","MACROS"],"not_rendered":{"charts":0,"images":3,"macros":1,"external_links":1,"defined_names":2,"comments":0,"pivot_tables":0},"unopened":[],"bounds":{"document_bytes":16777216,"sheet_cells":100000,"rows_first":2000,"rows_last":500,"rows_between":2000,"halvings":0,"cell_chars":16384,"cell_head_chars":4096},"cells_cut":0,"cells_raw":0,"read":"whole","date_system":"1900"}

{"sheet":"NOMBRE","index":0,"n_rows":38,"n_cols":33,"rows_kept":38,"cut":false,"hidden":false,"merged":[[1,8,1,13],[2,8,2,13],[13,0,13,1],[16,1,18,1],[0,0,0,1],[0,2,0,6],[8,0,8,1]]}
["DATOS DEL ESTABLECIMIENTO",null,"CÓDIGOS"]
["NOMBRE DE COMUNA","CALLE LARGA",0,5,3,0,2,null,{"$f":"IF(OR(NOMBRE!C2=\"\",NOMBRE!D2=\"\",NOMBRE!E2=\"\",NOMBRE!F2=\"\",NOMBRE!G2=\"\"),\"Falta Cód. Com.\",\"\")","v":""},null,null,null,null,null,null,null,null,null,null,null,null,null,null,null,null,null,null,null,null,null,null,null,{"$f":"IF(I2>\"\",1,0)","v":0}]
["NOMBRE ESTABLECIMIENTO/ESTRATEGIA","DR. JOSE JOAQUIN AGUIRRE CAMPOS",1,0,8,3,0,8,{"$f":"IF(OR(NOMBRE!C3=\"\",NOMBRE!D3=\"\",NOMBRE!E3=\"\",NOMBRE!F3=\"\",NOMBRE!G3=\"\",NOMBRE!H3=\"\"),\"Falta Cód. Est.\",\"\")","v":""},null,null,null,null,null,null,null,null,null,null,null,null,null,null,null,null,null,null,null,null,null,null,null,{"$f":"IF(I3>\"\",1,0)","v":0}]
["TIPO DE ESTABLECIMIENTO/ESTRATEGIA","Consultorio General Rural (CGR) - CESFAM con SAPU/SAR/SUR",null,null,null,null,null,null,{"$f":"IF(OR(NOMBRE!B4=\"\"),\"Falta Tipo. Est.\",\"\")","v":""},null,null,null,null,null,null,null,null,null,null,null,null,null,null,null,null,null,null,null,null,null,null,null,{"$f":"IF(I4>\"\",1,0)","v":0}]
["DEPENDENCIA","MUNICIPAL",null,null,null,null,null,null,{"$f":"IF(OR(NOMBRE!B5=\"\"),\"Falta Dependencia. Est.\",\"\")","v":""},null,null,null,null,null,null,null,null,null,null,null,null,null,null,null,null,null,null,null,null,null,null,null,{"$f":"IF(I5>\"\",1,0)","v":0}]
["MES:","ENERO",0,1,null,null,null,null,{"$f":"IF(OR(NOMBRE!C6=\"\",NOMBRE!D6=\"\"),\"Falta Cód. Mes.\",\"\")","v":""},null,null,null,null,null,null,null,null,null,null,null,null,null,null,null,null,null,null,null,null,null,null,null,{"$f":"IF(I6>\"\",1,0)","v":0}]
["AÑO:",2022,null,null,null,null,null,null,null,null,null,null,null,null,null,null,null,null,null,null,null,null,null,null,null,null,null,null,null,null,null,null,{"$f":"SUM(AG2:AG6)","v":0}]
[null,null,null,null,null,null," "]
["Versión 1.1 FEBRERO 2022"]
[]
["Director Servicio de Salud o Director Establecimiento","A.S. Patricia Natalia Rios Rojas",null,null,null,null,null,null,null,null,null,null,null,null,null,null,null,null,null,null,null,null,null,null,null,null,"ENERO","Establecimiento de Mayor Complejidad (EMAYC)","SERVICIO DE SALUD"]
["Jefe de Estadisticas","Carmen G. Ibaceta Cesped",null,null,null,null,null,null,null,null,null,null,null,null,null,null,null,null,null,null,null,null,null,null,null,null,"FEBRERO","Establecimiento de Mediana Complejidad (EMEDC)","MUNICIPAL"]
[null,null,null,null,null,null,null,null,null,null,null,null,null,null,null,null,null,null,null,null,null,null,null,null,null,null,"MARZO","Establecimiento de Menor Complejidad (EMENC)","OTRA INSTITUCIÓN (Delegado)"]
["MINSAL - DEIS",null,null,null,null,null,null,null,null,null,null,null,null,null,null,null,null,null,null,null,null,null,null,null,null,null,"ABRIL","Centros de Diagnãstico Terap_utico (CDT)"]
[null,null,null,null,null,null,null,null,null,null,null,null,null,null,null,null,null,null,null,null,null,null,null,null,null,null,"MAYO","Centro de Referencia de Salud (CRS)"]
[null,null,null,null,null,null,null,null,null,null,null,null,null,null,null,null,null,null,null,null,null,null,null,null,null,null,"JUNIO","Consultorio General Urbano (CGU)"]
[null,"SERIE BM ESTABLECIMIENTOS AREA MUNICIPAL",null,null,null,null,null,null,null,null,null,null,null,null,null,null,null,null,null,null,null,null,null,null,null,null,"JULIO","Consultorio General Urbano (CGU) - CESFAM"]
[null,null,null,null,null,null,null,null,null,null,null,null,null,null,null,null,null,null,null,null,null,null,null,null,null,null,"AGOSTO","Consultorio General Urbano(CGU) con SAPU/SUR/SAR"]
[null,null,null,null,null,null,null,null,null,null,null,null,null,null,null,null,null,null,null,null,null,null,null,null,null,null,"SEPTIEMBRE","Consultorio General Urbano (CGU) - CESFAM con SAPU/SAR"]
[null,null,null,null,null,null,null,null,null,null,null,null,null,null,null,null,null,null,null,null,null,null,null,null,null,null,"OCTUBRE","Consultorio General Rural (CGR)"]
[null,null,null,null,null,null,null,null,null,null,null,null,null,null,null,null,null,null,null,null,null,null,null,null,null,null,"NOVIEMBRE","Consultorio General Rural (CGR) - CESFAM"]
[null,null,null,null,null,null,null,null,null,null,null,null,null,null,null,null,null,null,null,null,null,null,null,null,null,null,"DICIEMBRE","Consultorio General Rural (CGR) con SAPU/SAR/SUR"]
[null,null,null,null,null,null,null,null,null,null,null,null,null,null,null,null,null,null,null,null,null,null,null,null,null,null,null,"Consultorio General Rural (CGR) - CESFAM con SAPU/SAR/SUR"]
[null,null,null,null,null,null,null,null,null,null,null,null,null,null,null,null,null,null,null,null,null,null,null,null,null,null,null,"Posta de Salud Rural (PSR)"]
[null,null,null,null,null,null,null,null,null,null,null,null,null,null,null,null,null,null,null,null,null,null,null,null,null,null,null,"Centro Comunitario de Salud Familiar (CECOF)"]
[null,null,null,null,null,null,null,null,null,null,null,null,null,null,null,null,null,null,null,null,null,null,null,null,null,null,null,"Consultorio de Salud Mental (COSAM)"]
[null,null,null,null,null,null,null,null,null,null,null,null,null,null,null,null,null,null,null,null,null,null,null,null,null,null,null,"Programa de Reparaciãn y Atenciãn Integral de Salud (PRAIS)"]
[null,null,null,null,null,null,null,null,null,null,null,null,null,null,null,null,null,null,null,null,null,null,null,null,null,null,null,"Centro de Atenciãn Funcionarios (CAF)"]
[null,null,null,null,null,null,null,null,null,null,null,null,null,null,null,null,null,null,null,null,null,null,null,null,null,null,null,"Clênica Dental Mãvil (CDM)"]
[null,null,null,null,null,null,null,null,null,null,null,null,null,null,null,null,null,null,null,null,null,null,null,null,null,null,null,"Direcciãn Servicio de Salud (DSS)"]
[null,null,null,null,null,null,null,null,null,null,null,null,null,null,null,null,null,null,null,null,null,null,null,null,null,null,null,"Servicio de Atenciãn Primaria de Urgencia (SAPU)"]
[null,null,null,null,null,null,null,null,null,null,null,null,null,null,null,null,null,null,null,null,null,null,null,null,null,null,null,"SAPU Alta Resoluciãn (SAR)"]
[null,null,null,null,null,null,null,null,null,null,null,null,null,null,null,null,null,null,null,null,null,null,null,null,null,null,null,"SAMU"]
[null,null,null,null,null,null,null,null,null,null,null,null,null,null,null,null,null,null,null,null,null,null,null,null,null,null,null,"Hospital de Campaña"]
[null,null,null,null,null,null,null,null,null,null,null,null,null,null,null,null,null,null,null,null,null,null,null,null,null,null,null,"Centro Oncologico"]
[null,null,null,null,null,null,null,null,null,null,null,null,null,null,null,null,null,null,null,null,null,null,null,null,null,null,null,"Laboratorio Clênico o Dental"]
[null,null,null,null,null,null,null,null,null,null,null,null,null,null,null,null,null,null,null,null,null,null,null,null,null,null,null,"Servicio de Atenciãn Primaria de Urgencia Dental (SAPUDENT)"]
[null,null,null,null,null,null,null,null,null,null,null,null,null,null,null,null,null,null,null,null,null,null,null,null,null,null,null,"Centro de Rehabilitaciãn (CR)"]

{"sheet":"BM18","index":1,"n_rows":110,"n_cols":22,"rows_kept":110,"cut":false,"hidden":false,"merged":[[62,0,62,1],[60,3,61,3],[87,0,89,0],[80,2,80,7],[86,0,86,1],[80,1,81,1],[76,0,77,1],[76,2,77,2],[78,0,78,1],[80,0,81,0],[95,6,96,6],[95,7,96,7],[95,0,96,0],[95,2,95,4],[95,5,96,5],[95,1,96,1],[10,5,11,5],[60,4,61,4],[10,4,11,4],[60,0,61,1],[46,2,47,2],[10,3,11,3],[12,1,12,2],[60,2,61,2],[16,1,16,2],[17,1,17,2],[18,1,18,2],[19,1,19,2],[20,1,20,2],[21,1,21,2],[28,1,28,2],[25,1,25,2],[10,0,11,2],[46,3,47,3],[46,1,47,1],[46,0,47,0],[29,1,30,1],[31,1,32,1],[33,1,34,1],[35,1,36,1],[37,1,38,1],[39,1,40,1],[41,1,42,1],[13,1,13,2],[14,1,14,2],[15,1,15,2],[22,1,22,2],[23,1,23,2],[24,1,24,2],[26,1,26,2],[27,1,27,2],[29,0,42,0],[91,5,92,5],[69,4,70,4],[69,0,70,1],[69,2,70,2],[91,0,92,0],[91,1,92,1],[91,2,91,4],[73,0,73,1],[74,0,74,1],[71,0,71,1],[72,0,72,1],[69,3,70,3]]}
["SERVICIO DE SALUD "]
[{"$f":"CONCATENATE(\"COMUNA: \",NOMBRE!B2,\" - \",\"( \",NOMBRE!C2,NOMBRE!D2,NOMBRE!E2,NOMBRE!F2,NOMBRE!G2,\" )\")","v":"COMUNA: CALLE LARGA - ( 05302 )"}]
[{"$f":"CONCATENATE(\"ESTABLECIMIENTO/ESTRATEGIA: \",NOMBRE!B3,\" - \",\"( \",NOMBRE!C3,NOMBRE!D3,NOMBRE!E3,NOMBRE!F3,NOMBRE!G3,NOMBRE!H3,\" )\")","v":"ESTABLECIMIENTO/ESTRATEGIA: DR. JOSE JOAQUIN AGUIRRE CAMPOS - ( 108308 )"}]
[{"$f":"CONCATENATE(\"MES: \",NOMBRE!B6,\" - \",\"( \",NOMBRE!C6,NOMBRE!D6,\" )\")","v":"MES: ENERO - ( 01 )"}]
[{"$f":"CONCATENATE(\"AÑO: \",NOMBRE!B7)","v":"AÑO: 2022"}]
[]
[]
[null,null,"REM-B18.   ACTIVIDADES DE APOYO DIAGNOSTICO y TERAPEUTICO"]
[null,null,"         (USO EXCLUSIVO DE ESTABLECIMIENTOS MUNICIPALES)"]
["SECCIÓN A: EXÁMENES DE DIAGNOSTICO"]
["EXÁMENES",null,null,"TOTAL","SAPU/SAR/SUR","NO SAPU/ NO SUR"]
[null,null,null,null,"Total","Total"]
["TOTAL EXÁMENES LABORATORIO",null,null,{"$f":"SUM(E13:F13)","v":0},{"$f":"SUM(E14:E16,E18:E19,E24:E25)","v":0},{"$f":"SUM(F14:F16,F18:F19,F24:F25)","v":0}]
["I  ","HEMATOLÓGICOS",null,{"$f":"SUM(E14:F14)","v":0},{"$f":"BM18A!D98","v":0},{"$f":"BM18A!E98","v":0}]
["II  ","BIOQUÍMICOS",null,{"$f":"SUM(E15:F15)","v":0},{"$f":"BM18A!D169","v":0},{"$f":"BM18A!E169","v":0}]
["III","HORMONALES",null,0,{"$f":"BM18A!D177","v":0},{"$f":"BM18A!E177","v":0}]
["IV","GENÉTICA"]
["V","INMUNOLÓGICOS",null,0,{"$f":"BM18A!D236","v":0},{"$f":"BM18A!E236","v":0}]
["VI  ","MICROBIOLÓGICOS",null,0,{"$f":"BM18A!D316","v":0},{"$f":"BM18A!E316","v":0}]
[null,"a)   BACTERIAS Y HONGOS"]
[null,"b)   PARÁSITOS"]
[null,"c)   VIRUS"]
["VII","PROCEDIMIENTO O DETERMINACIÓN DIRECTA C/PACIENTE"]
["VIII  ","EX.  DE DEPOSICIONES EXUDADOS. SECREC. Y OTROS LIQ.  ",null,{"$f":"SUM(E24:F24)","v":0},{"$f":"BM18A!D362","v":0},{"$f":"BM18A!E362","v":0}]
["IX   ","ORINA",null,0,{"$f":"BM18A!D394","v":0},{"$f":"BM18A!E394","v":0}]
["TOTAL EXÁMENES IMAGENOLOGIA",null,null,{"$f":"SUM(E26:F26)","v":5},{"$f":"SUM(E27+E28+E44)","v":0},{"$f":"SUM(F27+F28+F44)","v":5}]
["a)","EX. RADIOLÓGICOS SIMPLES",null,{"$f":"SUM(E27:F27)","v":0},{"$f":"SUM(BM18A!D397:D462)","v":0},{"$f":"SUM(BM18A!E397:E462)","v":0}]
[null," Ecotomografías",null,{"$f":"SUM(E28:F28)","v":5},{"$f":"SUM(BM18A!D464:D479)","v":0},{"$f":"SUM(BM18A!E464:E479)","v":5}]
[null," Ecotomografías abdominal ",null,0,{"$f":"BM18A!D464","v":0},{"$f":"BM18A!E464","v":0}]
[null,"Ecografías Obstétrica Primer Trimestre (<11 semanas)","Médico/a",{"$f":"SUM(F30)","v":0}]
[null,null,"Matrón/a",{"$f":"SUM(F31)","v":2},null,2]
[null,"Ecografias Obstétricas Primer Trimestre (11 - 14 semanas)","Médico/a",0]
[null,null,"Matrón/a",5,null,5]
[null,"Ecografias Obstétricas Segundo Trimestre (22 - 24 semanas)","Médico/a",0]
[null,null,"Matrón/a",0]
[null,"Ecografias Obstétricas Tercer Trimestre (30 - 34 semanas)","Médico/a",0]
[null,null,"Matrón/a",0]
[null,"Total Ecografías Obstétricas por profesional","Médico/a",{"$f":"SUM(D30+D32+D34+D36)","v":0}]
[null,null,"Matrón/a",{"$f":"SUM(D31+D33+D35+D37)","v":7}]
[null,"Ecografía de seguimiento DIU (Regulación de la Fertilidad)","Médico/a",{"$f":"SUM(F40)","v":0}]
[null,null,"Matrón/a",{"$f":"SUM(F41)","v":0}]
[null,"Ecografía Transvaginal (control de Climaterio y Ginecológico)","Médico/a",{"$f":"SUM(F42)","v":0}]
[null,null,"Matrón/a",{"$f":"SUM(F43)","v":0}]
[null,"Total de ecografías seguimiento DIU y Transvaginal ",null,{"$f":"SUM(D40:D43)","v":0}]
[]
["SECCIÓN B:  PROCEDIMIENTO DE APOYO CLÍNICO Y TERAPÉUTICO"]
["PROCEDIMIENTOS","TOTAL","SAPU/SAR/SUR","NO SAPU/ NO SUR"]
[null,null,"Total","Total"]
["PROC. DE NEUROLOGÍA Y NEUROCIRUGÍA",{"$f":"SUM(C49:D49)","v":0},{"$f":"BM18A!D484","v":0},{"$f":"BM18A!E484","v":0}]
["PROC. DE OFTALMOLOGÍA",{"$f":"SUM(C50:D50)","v":0},{"$f":"BM18A!D497","v":0},{"$f":"BM18A!E497","v":0}]
["PROC. DE OTORRINOLARINGOLOGÍA ",0,{"$f":"BM18A!D505","v":0},{"$f":"BM18A!E505","v":0}]
["PROC. DE NEUMOLOGÍA",0,{"$f":"BM18A!D520","v":0},{"$f":"BM18A!E520","v":0}]
["PROC. DE DERMATOLOGÍA",0,{"$f":"BM18A!D509","v":0},{"$f":"BM18A!E509","v":0}]
["PROC. DE CARDIOLOGÍA",94,{"$f":"BM18A!D514","v":0},{"$f":"BM18A!E514","v":94}]
["PROC. DE GASTROENTEROLOGÍA",0,{"$f":"BM18A!D525","v":0},{"$f":"BM18A!E525","v":0}]
["PROC. DE UROLOGÍA",0,{"$f":"BM18A!D529","v":0},{"$f":"BM18A!E529","v":0}]
["PROC. ORTOPEDIA Y TRAUMATOLOGÍA",0,{"$f":"BM18A!D540","v":0},{"$f":"BM18A!E540","v":0}]
["PROC. GINECO-OBSTÉTRICOS",0,{"$f":"BM18A!D531","v":0},{"$f":"BM18A!E531","v":0}]
["TOTAL",{"$f":"SUM(B49:B58)","v":94},{"$f":"SUM(C49:C58)","v":0},{"$f":"SUM(D49:D58)","v":94}]
["SECCIÓN C:  INTERVENCIONES QUIRÚRGICAS MENORES"]
[null,null,"TOTAL","SAPU/SAR/SUR","NO SAPU/ NO SUR"]
[null,null,null,"Total"]
["TOTAL INTERVENCIONES QUIRÚRGICAS MENORES (SUB-GRUPO TEGUMENTOS)",null,{"$f":"SUM(D63:E63)","v":25},{"$f":"+BM18A!D566","v":0},{"$f":"+BM18A!E566","v":25}]
["SECCIÓN D : INTERVENCIONES QUIRÚRGICAS MENORES POR EDAD"]
["INTERVENCIONES QUIRÚRGICAS","TOTAL","< 15 AÑOS","15 Y + AÑOS"]
["TOTAL",{"$f":"SUM(C66:D66)","v":25},{"$f":"SUM(C67:C68)","v":3},{"$f":"SUM(D67:D68)","v":22},{"$f":"U66","v":""},null,null,null,null,null,null,null,null,null,null,null,null,null,null,null,{"$f":"IF(B66=C63,\"\",\"El Total de Intervenciones Quirúrgicas de la Sección C DEBE coincidir con el Total de la Seccion D.\")","v":""},{"$f":"IF(B66=C63,0,1)","v":0}]
["SAPU/SAR",{"$f":"SUM(C67:D67)","v":0},0,0,{"$f":"U67","v":""},null,null,null,null,null,null,null,null,null,null,null,null,null,null,null,{"$f":"IF(B67=D63,\"\",\" * El Total de Intervenciones Quirúrgicas menores SAPU/SAR debe coincidir con el Total de Intervenciones Quirúrgicas menores SAPU/SAR/SUR de la Sección C. \")","v":""},{"$f":"IF(B67<>BM18A!D566,1,0)","v":0}]
["NO SAPU",{"$f":"SUM(C68:D68)","v":25},3,22,"",null,null,null,null,null,null,null,null,null,null,null,null,null,null,null,{"$f":"IF(B68=E63,\"\",\" * El Total de Intervenciones Quirúrgicas menores NO SAPU debe coincidir con el Total de Intervenciones Quirúrgicas menores NO SAPU/NO SUR de la Sección C. \")","v":""},{"$f":"IF(B68<>BM18A!E566,1,0)","v":0}]
["SECCIÓN E:  MISCELÁNEOS"]
["MISCELÁNEOS",null,"TOTAL","SAPU/SAR/SUR","NO SAPU/ NO SUR"]
[null,null,null,"Total","Total"]
["PROCEDIMIENTOS DE PODOLOGIA",null,{"$f":"SUM(D72:E72)","v":117},{"$f":"BM18A!D584","v":0},{"$f":"BM18A!E584","v":117}]
["CURACIÓN SIMPLE AMBULATORIA",null,{"$f":"SUM(D73:E73)","v":497},{"$f":"BM18A!D568","v":0},{"$f":"BM18A!E568","v":497}]
["AUTO CUIDADO PACIENTE DID",null,{"$f":"SUM(D74:E74)","v":0},{"$f":"BM18A!D569","v":0},{"$f":"BM18A!E569","v":0}]
["OXIGENOTERAPIA A DOMICILIO",null,0,{"$f":"BM18A!D570","v":0},{"$f":"BM18A!E570","v":0}]
["SECCIÓN F: PRESCRIPCIONES ADMINISTRADAS EN URGENCIA "]
["ATENCIÓN",null,"TOTAL"]
[]
["URGENCIA SAPU/SAR/SUR",null,160]
["SECCIÓN G : OTRAS ATENCIONES A PACIENTES AMBULATORIOS"]
["TIPO DE ATENCIÓN","TOTAL","ATENCIONES POR EDAD"]
[null,null,"< 1 año","1 - 4 años","5 a 9 años","10 a 19 años","20 a 64 años","65 años y más"]
["POR TERAPÉUTICA OCUPACIONAL",{"$f":"SUM(C83:H83)","v":0}]
["POR KINESIOLOGO (NO SAPU)",{"$f":"SUM(C84:H84)","v":0}]
["POR EDUCADORA DE PÁRVULO/DIFERENCIAL",{"$f":"SUM(C85:D85)","v":11},2,9]
["SECCIÓN H: OTROS TRASLADOS DE PACIENTES"]
["TIPO DE ACCION",null,"TOTAL        ","POR COMPRA \nDE SERVICIO"]
["TRASLADOS NO DE URGENCIA","AMBULANCIA"]
[null,"MARÍTIMO"]
[null,"AÉREO"]
["SECCIÓN I: EXAMENES PESQUISA COVID-19 "]
["TIPO DE EXÁMEN","TOTAL        ","Por grupos etarios",null,null,"POR COMPRA DE SERVICIO"]
[null,null,"< 15 años","> 15-64 años","65 y más años"]
["0306082: Reacción de Polimerasa en Cadena (P.C.R.), virus Influenza, virus Herpes, citomegalovirus, hepatitis C, mycobacteria TBC, SARS CoV -2 c/u (incluye toma muestra hisopado nasofaríngeo).",{"$f":"SUM(C94:E94)","v":1663},143,1375,145]
["SECCIÓN J: EXAMENES TEST RAPIDOS COVID-19"]
["Test rápido para detección de anticuerpos CoVID-19","TOTAL        ","Por grupos etarios",null,null,"Informados ","Positivo","Negativo"]
[null,null,"< 15 años","> 15-64 años","65 y más años"]
["OnSite COVID-19 IgG/IgM Rapid Test",{"$f":"SUM(C98:E98)","v":0}]
["DPP® COVID-19 IgM/IgG System",{"$f":"SUM(C99:E99)","v":0}]
["LUMIRATEK COVID-19 (IgG / IgM)",0]
["VivaDiag™ COVID19 IgM/IgG Rapid Test",0]
["Smart Test Covid19",0]
["Cellex qSARS-CoV2 IgG/IgM Cassette Rapid Test kit",0]
["CORONAVÍRUS IgG/IgM (COVID19)",0]
["COVID-19 IgG/IgM ECO Teste",0]
["Anti COVID-19 IgG/IgM Rapid Test",0]
["Família Teste Rápido em Cassete 2019-nCoV IgG/IgM",0]
["Smart Test Covid19 Vyttra",0]
["Lo desconoce",0]
["TOTAL",{"$f":"SUM(B98:B109)","v":0},0,0,0,0,0,0]

{"sheet":"BM18A","index":2,"n_rows":608,"n_cols":8,"rows_kept":608,"cut":false,"hidden":false,"merged":[[6,1,6,5],[605,0,605,1],[606,0,606,1],[539,0,539,1],[540,0,540,1],[565,0,565,1],[566,0,566,1],[584,0,584,1],[585,0,586,0],[585,1,586,1],[590,0,590,7],[585,2,586,2],[585,3,586,3],[585,4,586,4],[591,7,592,7],[597,0,597,1],[591,0,592,1],[591,2,592,2],[591,3,592,3],[591,4,592,4],[591,5,591,6],[607,0,607,1],[5,0,5,2],[97,0,97,1],[169,0,169,1],[98,0,98,1],[599,0,599,1],[600,0,600,1],[601,0,601,1],[602,0,602,1],[603,0,603,1],[593,0,593,1],[594,0,594,1],[595,0,595,1],[596,0,596,1],[531,0,531,1],[598,0,598,1],[585,5,586,5],[589,0,589,1],[508,0,508,1],[509,0,509,1],[514,0,514,1],[513,0,513,1],[520,0,520,1],[524,0,524,1],[525,0,525,1],[528,0,528,1],[529,0,529,1],[519,0,519,1],[484,0,484,1],[496,0,496,1],[497,0,497,1],[504,0,504,1],[480,5,480,6],[395,0,395,1],[480,0,481,0],[480,1,481,1],[514,2,514,7],[315,0,315,1],[361,0,361,1],[393,0,393,1],[394,0,394,1],[316,0,316,1],[362,0,362,1],[505,0,505,1],[480,2,481,2],[480,3,481,3],[482,0,482,1],[480,4,481,4],[480,7,481,7],[176,0,176,1],[177,2,177,5],[235,0,235,1],[236,2,236,5],[177,0,177,1],[236,0,236,1],[9,2,10,2],[11,2,11,5],[11,0,11,1],[98,2,98,5],[168,0,168,1],[9,0,10,0],[9,1,10,1],[9,3,10,3],[9,4,10,4],[9,5,10,5]]}
["SERVICIO DE SALUD "]
[{"$f":"CONCATENATE(\"COMUNA: \",NOMBRE!B2,\" - \",\"( \",NOMBRE!C2,NOMBRE!D2,NOMBRE!E2,NOMBRE!F2,NOMBRE!G2,\" )\")","v":"COMUNA: CALLE LARGA - ( 05302 )"}]
[{"$f":"CONCATENATE(\"ESTABLECIMIENTO/ESTRATEGIA: \",NOMBRE!B3,\" - \",\"( \",NOMBRE!C3,NOMBRE!D3,NOMBRE!E3,NOMBRE!F3,NOMBRE!G3,NOMBRE!H3,\" )\")","v":"ESTABLECIMIENTO/ESTRATEGIA: DR. JOSE JOAQUIN AGUIRRE CAMPOS - ( 108308 )"}]
[{"$f":"CONCATENATE(\"MES: \",NOMBRE!B6,\" - \",\"( \",NOMBRE!C6,NOMBRE!D6,\" )\")","v":"MES: ENERO - ( 01 )"}]
[{"$f":"CONCATENATE(\"AÑO: \",NOMBRE!B7)","v":"AÑO: 2022"}]
[]
[null,"REM-18A  -  LIBRO DE PRESTACIONES DE APOYO DIAGNOSTICO y TERAPÉUTICO\n(USO EXCLUSIVO DE ESTABLECIMIENTOS MUNICIPALES)"]
[]
["SECCIÓN A: EXÁMENES DE DIAGNOSTICO"]
["CÓDIGOS","EXÁMENES","TOTAL","SAPU/SAR/SUR","NO SAPU/ NO SUR","COMPRAS DE SERVICIOS"]
[]
["1.- SANGRE HEMATOLOGÍA"]
["0301001","Acidificación del suero, test de Ham",{"$f":"SUM(D13:E13)","v":0}]
["0301002","Acido fólico o folatos",{"$f":"SUM(D14:E14)","v":0}]
["0301003","Adenograma, esplenograma, mielograma c/u",0]
["0301004","Adhesividad plaquetaria",0]
["0301005","Aglutininas anti Rho",0]
["0301006","Agregación plaquetaria",0]
["0301007","Anticoagulantes circulantes o anticoagulante lúpico",0]
["0301008","Antitrombina III",0]
["0301009","Auto-hemólisis test,  con y sin glucosa",0]
["0301010","Células del lupus, cada muestra",0]
["0301011","Coagulación, tiempo de",0]
["0301012","Coágulo,  tiempo de retracción del",0]
["0301013","Coágulo, tiempo de lisis del",0]
["0301014","Coombs directo, test de",0]
["0301015","Coombs indirecto, prueba de",0]
["0301016","Cuerpos de Heinz",0]
["0301017","Deshidrogenasa glucosa-6-fosfato en eritrocitos",0]
["0301020","Euglobulinas, tiempo de lisis de",0]
["0301021","Fibrinógeno",0]
["0301022","Test de neutralización plaquetaria",0]
["0301023","Factor III plaquetario",0]
["0301024","Factor V",0]
["0301025","Factores VII, VIII, IX, X, XI, XII, XIII, c/u",0]
["0301026","Ferritina",0]
["0301027","Fibrinógeno, productos de degradación del",0]
["0301028","Fierro sérico",0]
["0301029","Fierro, capacidad de fijación del (incluye fierro sérico)",0]
["0301030","Fierro, cinética del (cada determinación)",0]
["0301032","Gelación por etanol",0]
["0301033","Grupos menores. Tipificación o determinación de otros sistemas sanguíneos (Kell, Duffy, Kidd y otros) c/u.",0]
["0301034","Grupos sanguíneos AB0 y Rho (incluye estudio de factor Du en Rh negativos)",0]
["0301035","Haptoglobina cuantitativa",0]
["0301036","Hematocrito (proc. aut.)",0,null,null,209]
["0301038","Hemoglobina en sangre total (proc. aut.)",0,null,null,209]
["0301039","Hemoglobina fetal cualitativa",0]
["0301040","Hemoglobina fetal cuantitativa en eritrocitos",0]
["0301041","Hemoglobina glicosilada",0,null,null,122]
["0301042","Hemoglobina plasmática",0]
["0301043","Hemoglobina termolabil",0]
["0301044","Hemoglobina, electroforesis de (incluye Hb. total)",0]
["0301045","Hemograma (incluye recuentos de leucocitos y eritrocitos, hemoglobina, hematocrito, fórmula leucocitaria, características de los elementos figurados y velocidad de eritrosedimentación)",0,null,null,106]
["0301046","Hemolisinas",0]
["0301047","Hemólisis con sucrosa, test de",0]
["0301048","Hemosiderina medular",0]
["0301049","Heparina, cuantificación de",0]
["0301050","Isoinmunización, detección de anticuerpos irregulares (proc. aut.).",0]
["0301051","Isoinmunización, detección e identificación de anticuerpos",0]
["0301052","Isopropanol, test de",0]
["0301053","Metahemalbúmina",0]
["0301054","Metahemoglobina",0]
["0301055","Muraminidasa en eritrocitos",0]
["0301056","Piruvatoquinasa en eritrocitos",0]
["0301057","Protamina sulfato, determinación de",0]
["0301058","Protoporfirinas en eritrocitos",0]
["0301059","Protrombina, tiempo de o consumo de (incluye INR, Relación Internacional Normalizada)",0,null,null,10]
["0301062","Recuento de basófilos (absoluto)",0]
["0301063","Recuento de eosinófilos (absoluto)",0]
["0301064","Recuento de eritrocitos, absoluto (proc. aut.)",0]
["0301065","Recuento de leucocitos, absoluto (proc. aut.)",0]
["0301066","Recuento de linfocitos (absoluto)",0]
["0301067","Recuento de plaquetas (absoluto)",0]
["0301068","Recuento de reticulocitos (absoluto o porcentual)",{"$f":"SUM(D74:E74)","v":0}]
["0301069","Recuento diferencial o fórmula leucocitaria (proc. aut.)",0]
["0301070","Resistencia globular osmótica",0]
["0301071","Sacarosa, prueba de la",0]
["0301072","Sangría, tiempo de (Ivy) (no incluye dispositivo asociado )",0]
["0301074","Sobrevida del eritrocito (Cr 51 o similar)",0]
["0301075","Subgrupo ABO y Rh fenotipo - genotipo Rh, c/u",0]
["0301076","Thorn, prueba de (no incluye ACTH)",0]
["0301077","Tinción de estearasa",0]
["0301078","Tinción de fosfatasas alcalinas o ácidas",0]
["0301079","Tinción de glicógeno o PAS",0]
["0301080","Tinción de lípidos",0]
["0301081","Tinción de peroxidasas",0]
["0301082","Transferrina",0]
["0301083","Trombina, tiempo de",0]
["0301085","Tromboplastina, tiempo parcial de (TTPA, TTPK o similares)",0]
["0301086","Velocidad de eritrosedimentación (proc. aut.)",0]
["0301087","Vitamina B12, absorción de (Co 57 o similar)",0]
["0301088","Volemia (incluye volumen globular total, volumen plasmático total y volumen sanguíneo total)",0]
["0301089","Von Willebrand, Ag de (factor VIII Ag.)",0]
["0301090","Cofactor de Ristocetina",0]
["0301091","Proteína C",0]
["0301092","Proteína S",0]
["0301093","Resistencia Proteína C",0]
["TOTAL",null,{"$f":"SUM(C13:C97)","v":0},{"$f":"SUM(D13:D97)","v":0},{"$f":"SUM(E13:E97)","v":0},{"$f":"SUM(F13:F97)","v":656}]
["2.- SANGRE BIOQUÍMICO"]
["0302001","Acetona cualitativa",{"$f":"SUM(D100:E100)","v":0}]
["0302002","Acido cítrico",0]
["0302004","Acido láctico",0]
["0302005","Acido úrico, en sangre",0,null,null,30]
["0302006","Alcohol etílico",0]
["0302007","Aldolasa",0]
["0302008","Amilasa, en sangre",0]
["0302009","Aminoácidos, cualitativo en sangre",0]
["0302010","Amonio",0]
["0302070","Apolipoproteínas (A1, B u otras)",0]
["0302011","Bicarbonato (proc. aut.)",0]
["0302012","Bilirrubina total (proc. aut.)",0]
["0302013","Bilirrubina total y conjugada",0,null,null,42]
["0302014","Bromosulftaleína, prueba de (incluye medicamento y tomas de muestra)",0]
["0302015","Calcio en sangre",0]
["0302016","Calcio iónico, incluye proteínas totales",0]
["0302017","Caroteno",0]
["0302018","Caroteno, prueba de sobrecarga de (incluye tomas de muestra)",0]
["0302019","Ceruloplasmina",0]
["0302020","Cobre",0]
["0302067","Colesterol total (proc. aut.)",0]
["0302068","Colesterol HDL (proc. aut.)",0]
["0302021","Colinesterasa en plasma o sangre total",0]
["0302022","Creatina",0]
["0302023","Creatinina en sangre",0,null,null,186]
["0302024","Creatinina, depuración de (Clearence) (proc. aut.)",0,null,null,2]
["0302025","Creatinquinasa CK - MB  miocárdica",0]
["0302026","Creatinquinasa CK - total",0]
["0302028","Depuraciones (Clearance) exógenas de Hipurán, Rojo Congo, manitol e inulina, c/u (no incluye medicamento)",0]
["0302029","Deshidrogenasa hidroxibutírica (HBDH)",0]
["0302030","Deshidrogenasa láctica total (LDH)",0]
["0302031","Deshidrogenasa láctica total (LDH), con separación de isoenzimas",0]
["0302032","Electrolitos plasmáticos (sodio, potasio, cloro) c/u",0,null,null,100]
["0302033","Enzima convertidora de angiotensina I",0]
["0302034","Perfil Lipídico (incluye: colesterol total, HDL, LDL, VLDL y triglicéridos) ",0,null,null,320]
["0302035","Fármacos y/o drogas; niveles plasmáticos de (alcohol, anorexígenos, antiarrítmicos, antibióticos, antidepresivos, antiepilépticos, antihistamínicos, antiinflamatorios y analgésicos, estimulantes respiratorios, tranquilizantes mayores y menores, etc.) c/u",0,null,null,6]
["0302036","Fenilalanina",0]
["0302037","Fosfatasas ácidas totales",0]
["0302038","Fosfatasas ácidas totales y fracción prostática",0]
["0302039","Fosfatasas alcalinas con separación de isoenzimas hepáticas, intestinales, óseas c/u",0]
["0302040","Fosfatasas alcalinas totales",0,null,null,18]
["0302041","Fosfolípidos",0]
["0302042","Fósforo (fosfatos) en sangre",0]
["0302043","Galactosa",0]
["0302044","Galactosa, curva de tolerancia, (mínimo cuatro determinaciones) (no incluye la galactosa que se administra) (incluye los valores de todas las tomas de muestras necesarias)",0]
["0302045","Gamma glutamiltranspeptidasa (GGT)",0]
["0302046","Gases y equilibrio ácido base en sangre (incluye: pH, O2, CO2, exceso de base y bicarbonato), todos o cada uno de los parámetros",0]
["0302047","Glucosa en sangre",0,null,null,376]
["0302048","Glucosa, Prueba de Tolerancia a la Glucosa Oral (PTGO), (dos determinaciones) (no incluye la glucosa que se administra) (incluye el valor de las dos tomas de muestras)",0]
["0302050","Adenosindeaminasa en sangre u otro fluído biológico.",0]
["0302051","Lactosa, curva de tolerancia, (mínimo cuatro determinaciones) (no incluye la lactosa que se administra) (incluye los valores de todas las tomas de muestras necesarias)",0]
["0302052","Leucinaminopeptidasa (LAP)",0]
["0302053","Lipasa",0]
["0302069","Lípidos totales (proc. aut.)",0]
["0302054","Lipoproteínas, electroforesis de (incluye lípidos totales)",0]
["0302055","Litio",0]
["0302056","Magnesio",0]
["0302057","Nitrógeno ureico y/o úrea en sangre",0,null,null,116]
["0302058","Osmolalidad en sangre",0]
["0302075","Perfil bioquímico (determinación automatizada de 12 parámetros)",0]
["0302059","Proteínas fraccionadas albúmina/globulina (incluye código 03-02-060)",0]
["0302060","Proteínas totales o albúminas, c/u en sangre",0]
["0302061","Proteínas, electroforesis (incluye cód. 03-02-060)",0]
["0302062","Salicilemia cuantitativa        ",0]
["0302076","Perfil Hepático (incluye tiempo de protrombina, bilirrubina total y conjugada, fosfatasas alcalinas totales, GGT, transaminasas GOT/AST y GPT/ALT)",{"$f":"SUM(D164:E164)","v":0}]
["0302063","Transaminasas, oxalacética (GOT/AST), Pirúvica (GPT/ALT), c/u",0,null,null,96]
["0302064","Triglicéridos (proc. aut.)",0]
["0302065","Vitaminas A, B, C, D, E, etc., c/u",0]
["0302066","Xilosa, prueba de absorción (no incluye la xilosa que se administra)",0]
["TOTAL",null,{"$f":"SUM(C100:C168)","v":0},{"$f":"SUM(D100:D168)","v":0},{"$f":"SUM(E100:E168)","v":0},{"$f":"SUM(F100:F168)","v":1292}]
["3.- EXÁMENES HORMONALES"]
["0303015","Hormona folículo estimulante (FSH)",{"$f":"SUM(D171:E171)","v":0},null,null,26]
["0303024","Tiroestimulante (TSH), hormona (adulto, niño o R.N.)                            ",{"$f":"SUM(D172:E172)","v":0},null,null,255]
["0303025","Tiroglobulina                                                                                   ",{"$f":"SUM(D173:E173)","v":0}]
["0303026","Tiroxina libre (T4L)                                                                       ",0,null,null,148]
["0303027","Tiroxina o tetrayodotironina (T4)                                               ",0,null,null,3]
["0303028","Triyodotironina (T3)                                                               ",0,null,null,3]
["TOTAL",null,{"$f":"SUM(C171:C176)","v":0},{"$f":"SUM(D171:D176)","v":0},{"$f":"SUM(E171:E176)","v":0},{"$f":"SUM(F171:F176)","v":435}]
["4.- INMUNOLÓGICOS"]
["0305001","Alfa -1- antitripsina cuantitativa",{"$f":"SUM(D179:E179)","v":0}]
["0305002","Alfa -2- macroglobulina",0]
["0305003","Alfa fetoproteínas",0]
["0305004","Tamizaje de Anticuerpos anti antígenos nucleares extractables (a- ENA: Sm, RNP, Ro, La, Scl- 70 y Jo- 1)",0]
["0305005","Anticuerpos antinucleares (ANA), antimitocondriales, anti DNA (ADNA), anti músculo liso, anticentrómero, u otros, c/u.",0]
["0305006","Anticuerpos atípicos, pannel de identificación",0]
["0305007","Anticuerpos específicos y otros autoanticuerpos (anticuerpos antitiroídeos: anticuerpos antimicrosomales y antitiroglobulinas y otros anticuerpos: prostático, espermios, etc.) c/u",0]
["0305008","Antiestreptolisina O, por técnica de látex ",0]
["0305009","Antígeno carcinoembrionario (CEA)",0]
["0305070","Antígeno prostático específico",0,null,null,5]
["0305170","Antígeno Ca 125, Ca 15-3 y Ca 19-9, c/u",0]
["0305010","Beta-2-microglobulina",0]
["0305011","Complejos inmunes circulantes",0]
["0305012","Complemento C1Q, C2, C3, C4, etc., c/u",0]
["0305013","Complemento hemolítico (CH 50)",0]
["0305014","Crioglobulinas, precipitación en frío (cualitativa) o cuantitativa c/u",0]
["0305015","Depósito de complejos inmunes por inmunofluorescencia",0]
["0305016","Depósito de complemento por inmunofluorescencia (C3, C4), c/u",0]
["0305017","Depósito de fibrinógeno por inmunofluorescencia",0]
["0305018","Depósito de inmunoglobulina por inmunofluorescencia (IgG, IgA, IgM) c/u",0]
["0305019","Factor reumatoídeo por técnica de látex u otras similares",0]
["0305020","Factor reumatoídeo por técnica Scat, Waaler Rose, nefelométricas y/o turbidimétricas",0,null,null,3]
["0305021","Inhibidor de C1Q, C2 y C3, c/u",0]
["0305025","Inmunofijación de inmunoglobulina, c/u",0]
["0305026","Inmunoglobulina IgA secretora",0]
["0305027","Inmunoglobulinas IgA, IgG, IgM, c/u",0]
["0305028","Inmunoglobulinas IgE, IgD total, c/u",0]
["0305029","Inmunoglobulinas IgE, IgG específicas, c/u",0]
["0305030","Proteína C reactiva por técnica de látex u otras similares",0]
["0305031","Proteína C reactiva por técnicas nefelométricas y/o turbidimétricas",0,null,null,12]
["0305034","Quimiotaxis-leucotaxis",0]
["0305035","Crioaglutininas",0]
["0305036","Criohemolisinas",0]
["0305037","Digestión fagocítica nitroblue-tetrazolium cualitativo y cuantitativo",0]
["0305038","Fagocitosis: ingestión y digestión (killing) de levaduras por polimorfonucleares",0]
["0305039","Fagocitosis: ingestión y digestión (killing) de bacterias por polimorfonucleares",0]
["0305040","Inmunoadherencia de leucocitos macrófagos",0]
["0305041","Intradermoreacción (PPD, histoplasmina, aspergilina, u otros, incluye el valor del antígeno y reacción de control), c/u. ",0]
["0305042","LIF o MIF",0]
["0305043","Linfocitos B (inmunofluorescencia)",0]
["0305044","Linfocitos B (rosetas EAC) y linfocitos T (rosetas E) c/u",0]
["0305045","Linfocitos T \"helper\" (OKT4) o supresores (OKT8) con antisuero monoclonal, c/u",0]
["0305047","Linfotoxinas humanas, detección de",0]
["0305048","Reacción cutánea 16 alergenos por escarificación (incluye el valor de los antígenos)",0]
["0305049","Transformación linfoblástica a drogas, análisis de transformación espontanea con estimulo inespecífico y con diferentes concentraciones de la droga en 1000 células",0]
["0305051","Absorción de autoanticuerpos del receptor",0]
["0305052","Anticuerpos linfocitotóxicos (PRA) por microlinfocitotoxicidad",0]
["0305053","Autocrossmatch con linfocitos T y B",0]
["0305054","Autocross match con linfocitos totales",0]
["0305056","Alocrossmatch con linfocitos totales",0]
["0305057","Alocrossmatch con linfocitos T y B",0]
["0305058","Cultivo mixto de linfocitos",0]
["0305059","Identificación de clase de inmunoglobulinas de auto o alo cross match positivo",0]
["0305060","Tipificación HLA B-27",0]
["0305061","Tipificación HLA B-8",0]
["0305062","Tipificación HLA  - DR serológica",0]
["0305063","Tipificación HLA - A, B serológica",0]
["TOTAL",null,{"$f":"SUM(C179:C235)","v":0},{"$f":"SUM(D179:D235)","v":0},{"$f":"SUM(E179:E235)","v":0},{"$f":"SUM(F179:F235)","v":20}]
["5.- MICROBIOLÓGICOS"]
["0306001","Baciloscopía Ziehl-Neelsen por concentración de líquidos (orina u otros), c/u",{"$f":"SUM(D238:E238)","v":0}]
["0306002","Baciloscopía Ziehl-Neelsen, c/u",0]
["0306004","Examen directo al fresco, c/s tinción (incluye trichomonas)",0]
["0306005","Tinción de Gram",0]
["0306006","Ultramicroscopía (incluye toma de muestras)",0]
["0306007","Coprocultivo, c/u",0]
["0306008","Corriente (excepto coprocultivo, hemocultivo y urocultivo) c/u",0]
["0306009","Hemocultivo aerobio, c/u",0]
["0306010","Hemocultivo anaerobio, c/u",0]
["0306011","Urocultivo, recuento de colonias y antibiograma (cualquier técnica) (incluye toma de orina aséptica) (no incluye recolector pediátrico)",0,null,null,82]
["0306012","Anaerobios (incluye cód. 03-06-008)",0]
["0306013","Cultivo específico para Bordetella",0]
["0306014","Cultivo para Campylobacter, Yersinia, Vibrio, c/u",0]
["0306015","Difteria",0]
["0306016","Neisseria gonorrhoeae (gonococo)",0]
["0306017","Cultivo para Levaduras",0]
["0306117","Hongos Filamentosos",0]
["0306018","Cultivo para bacilo de Koch, (incluye otras micobacterias)",0]
["0306019","Cultivo para Legionella",0]
["0306020","Listeria",0]
["0306021","Neisseria meningitidis (meningococo)",0]
["0306022","Cultivo y Tipificación de micobacterias",0]
["0306023","Mycoplasma y Ureaplasma, c/u",0]
["0306024","Anaerobios  (mínimo 4 fármacos)",0]
["0306025","Bacilo de Koch (cada fármaco)",0]
["0306026","Corriente (mínimo 10 fármacos) (en caso de urocultivo no corresponde su cobro; incluido en el valor 03-06-011)",0]
["0306027","Estudio de sensibilidad por dilución (CIM) (mínimo 6 fármacos) (en caso de urocultivo, no corresponde su cobro; incluido en el valor código 03-06-011)",0]
["0306028","Antifungigrama (mínimo 4 fármacos antihongos)",0]
["0306029","Autovacunas, incluye cultivo y preparación  de mínimo 10 ampollas",0]
["0306030","Poder bactericida del suero",0]
["0306031","Preparación de vacunas uni o polivalentes mantenidas en stock (mínimo 5 ampollas)",0]
["0306032","Aspergilosis, candidiasis, histoplasmosis u otros hongos por inmunodiagnóstico c/u",0]
["0306033","Brucella, reacción de aglutinación para (Wright-Hudleson) o similares",0]
["0306034","Clamidias por inmunofluorescencia, peroxidasa, Elisa o similares",0]
["0306036","Mononucleosis, reacción de Paul Bunnell, Anticuerpos Heterófilos o similares",0]
["0306037","Mycoplasma IgG, IgM, c/u. ",0]
["0306038","R.P.R.",0]
["0306039","Tíficas, reacciones de aglutinación  (Eberth H y O, paratyphi A y B) (Widal)",0]
["0306041","Treponema pallidum FTA - ABS, MHA-TP c/u",0]
["0306042","V.D.R.L.",0]
["0306043","Artrópodos macroscópicos y microscópicos (imagos y/o pupas y/o larvas), diagnóstico de",0]
["0306045","Coproparasitario seriado con técnica  para Cryptosporidium sp o para Diantamoeba fragilis (incluye los códigos 03-06-048 y/o 03-06-059 más aplicación de técnica de frotis con tinción tricrómica o tinción Ziehl-Neelsen en por lo menos 3 muestras, según corresponda)",0]
["0306046","Coproparasitario seriado para Fasciola hepática (incluye diagnostico de gusanos macroscópicos y ex. microscópico de 10 muestras separadas por método de Telemann y de otras 10 muestras separadas y simultáneas con las ant. por téc. de sedimentación)",0]
["0306047","Coproparasitario seriado para Isospora y Sarcocystis (incluye diagnóstico de gusanos macroscópicos y examen  microscópico de 3 muestras separadas)",0]
["0306048","Coproparasitológico seriado simple (incluye diagnostico de gusanos macroscópicos y examen microscópico por concentración de 3 muestras separadas método Telemann) (proc. aut.)",0,null,null,2]
["0306049","Diagnostico de parásitos en jugo duodenal y/o bilis, examen macroscópico y microscópico (directo y/o concentración, c/s tinción)",0]
["0306050","Diagnostico parasitario en exudados, secreciones y otros líquidos orgánicos (no especificados mas adelante), examen macro y microscópico de (incluye concentración y/o tinción cuando proceda), c/u",0]
["0306051","Graham, examen de (incluye diagnostico de gusanos macroscópicos y examen microscópico de 5 muestras separadas)",0,null,null,1]
["0306052","Gusanos macroscópicos, diagnóstico de (proc. aut.)",0]
["0306053","Hemoparásitos, diagnóstico microscópico de (mínimo 10 frotis y/o gotas gruesas, c/s examen directo al fresco), cada sesión",0]
["0306054","Hemoparásitos, diagnóstico por técnica de Strout o similar en hasta 10 tubos capilares, cada sesión",0]
["0306056","Raspado de piel, examen microscópico de (\"Acarotest\"): de 6 a 10 preparaciones",0]
["0306057","Tenias post. trat., Diagnostico y búsqueda de escólex de",0]
["0306058","Xenodiagnóstico (cada aplicación de 2 cajas, con 6 ninfas por lo menos c/u, examinadas a los 20 y/o 30 días y hasta por 60 días más si procede)",0]
["0306059","Coproparasitológico seriado simple (incluye diagnóstico de gusanos macroscopicos  y exámen microscopico por concentración de tres muestras separadas método PAFS (proc. aut.)",0]
["0306061","Elisa indirecta (Chagas, hidatidosis, toxocariasis y otras), c/u",0]
["0306062","Fijación del complemento (distomatosis, toxoplasmosis, cisticercosis y otras) c/u",0]
["0306063","Floculación en bentonita, látex, precipitinas o similar (triquinosis, hidatidosis y otros), c/u",0]
["0306064","Hemaglutinación indirecta (toxoplasmosis, Chagas, hidatidosis y otras), c/u",0]
["0306065","Inmunoelectroforesis o contrainmunoelectroforesis (hidatidosis, distomatosis, amebiasis y otras), c/u",0]
["0306066","Inmunofluorescencia indirecta (toxoplasmosis, Chagas, amebiasis y otras), c/u",0]
["0306067","Reacción intradérmica (incluye el valor y la aplicación del antígeno y del control y examen de las reacciones inmediatas y retardadas, cada antígeno) (bachmann, distomatosis u otras)",{"$f":"SUM(D299:E299)","v":0}]
["0306068","Aislamiento de virus (adenovirus, citomegalovirus, Coxsakie, herpes, influenza, polio, sarampión y otros), c/u",0]
["0306069","Anticuerpos virales, determ. de (adenovirus, citomegalovirus, herpes simple, rubéola, Influenza  A y B; virus varicela-zoster; virus sincicial respiratorio; parainfluenza 1, 2 y 3, Epstein Barr y otros), c/u",0]
["0306169","Anticuerpos virales, determ. de H.I.V.",0]
["0306070","Antígenos virales determ. de (adenovirus, citomegalovirus, herpes simple, rubéola, influenza y otros), (por cualquier técnica ej: inmunofluorescencia), c/u",0]
["0306170","Antígenos virales determ. de rotavirus, por cualquier técnica ",0]
["0306270","Antígenos virales determ. de virus sincicial, por cualquier técnica ",0]
["0306072","Reacción de seroneutralización para: virus polio, ECHO, Coxsakie, c/u",0]
["0306073","Virus hepatitis A, Anticore",0]
["0306074","Virus hepatitis A, anticuerpos IgM del",0]
["0306075","Virus hepatitis B, anticuerpo del antígeno E del",0]
["0306076","Virus hepatitis B, anticore total del (anti HBc total)",0]
["0306077","Virus hepatitis B, anticuerpos de antígeno de superficie (australiano)",0]
["0306078","Virus hepatitis B, antígeno E del (HBEAg)",0]
["0306079","Virus hepatitis B, antígeno superficie",0]
["0306080","Virus hepatitis B, anticore IgM del (anti HBc IgM)",0]
["0306081","Virus hepatitis C, anticuerpos de (anti HCV)",0]
["TOTAL",null,{"$f":"SUM(C238:C315)","v":0},{"$f":"SUM(D238:D315)","v":0},{"$f":"SUM(E238:E315)","v":0},{"$f":"SUM(F238:F315)","v":85}]
["6.- EXÁMENES DE DEPOSICIONES, EXUDADOS, SECRESIONES Y OTROS LÍQUIDOS"]
["0308001","Azúcares reductores (Benedict-Fehling o similar)",{"$f":"SUM(D318:E318)","v":0}]
["0308002","Balance graso (Van de Kamer) muestra de tres o más días",0]
["0308003","Grasas neutras (Sudán III)",0]
["0308004","Hemorragias ocultas, (bencidina, guayaco o test de Weber y similares), cualquier método, c/muestra",0]
["0308005","Leucocitos fecales",0,null,null,1]
["0308006","PH",0]
["0308007","Porfirinas, c/u",0]
["0308008","Urobilinógeno cuantitativo",0]
["0308009","Células neoplásicas en fluídos biológicos",0]
["0308010","Citológico c/s tinción (incluye examen al fresco, recuento celular y citológico porcentual)",0]
["0308011","Directo al fresco c/s tinción, (incluye trichomonas)",0]
["0308012","Electrolitos (sodio, potasio, cloro), c/u",0]
["0308013","Eosinófilos, recuento de",0]
["0308014","Físico-químico (incluye aspecto, color, pH, glucosa, proteína, Pandy y filancia)",0]
["0308015","Glucosa en exudados secreciones y otros liquidos",0]
["0308016","Mucina, determinación de",0]
["0308017","pH, (proc. aut.)",0]
["0308018","Proteínas totales o albúmina (proc. aut.) c/u",0]
["0308019","Proteínas, electroforesis de (incluye proteínas totales)",0]
["0308020","Bandas oligoclonales (incluye electroforesis de L.C.R., suero e inmunofijación)",0]
["0308021","Glutamina",0]
["0308022","Indice IgG/albúmina (incluye determ. de IgG y albúmina en L.C.R. y suero)",0]
["0308023","Estudio de cristales (con luz polarizada)",0]
["0308024","Acidez titulable, pH, volumen (una muestra)",0]
["0308025","Prueba de estimulación máxima con histamina, mínimo 5 muestras (no incluye la histamina ni el antihistamínico).",0]
["0308026","Volumen, anhídrido carbónico, amilasa y lipasa",0]
["0308027","Cristales de colesterol",0]
["0308028","Lípidos biliares",0]
["0308029","Espermiograma (físico y microscópico, con o sin observación hasta 24 horas)",0]
["0308030","Fosfatasa ácida prostática",0]
["0308031","Fructosa, consumo de",0]
["0308032","Bilirrubina                               ",0]
["0308033","Células anaranjadas (proc. aut.)",0]
["0308034","Contaminantes (meconio y sangre) (proc. aut.)",0]
["0308035","Creatinina (proc. aut.)",0]
["0308036","Fosfatidil glicerol y/o fosfatidil inositol",0]
["0308037","Indice de bilirrubina (prueba de Liley)",0]
["0308038","Indice lecitina/esfingomielina",0]
["0308039","Madurez fetal completa (físico; células anaranjadas, bilirrubina, test de Clements, creatinina, contaminantes)",0]
["0308040","Test de Clements (proc. aut.)",0]
["0308041","Colpocitograma",0]
["0308042","Cristalización y filancia de moco cervical",0]
["0308043","Moco-semen, prueba de compatibilidad",0]
["0308044","Flujo vaginal o secreción uretral, estudio de (incluye toma de muestra y códigos 03-06-004, 03-06-005, 03-06-008, 03-06-017, y 03-06-026 )",0]
["TOTAL",null,{"$f":"SUM(C318:C361)","v":0},{"$f":"SUM(D318:D361)","v":0},{"$f":"SUM(E318:E361)","v":0},{"$f":"SUM(F318:F361)","v":1}]
["7.- EXÁMENES DE ORINA"]
["0309001","Acido ascórbico",{"$f":"SUM(D364:E364)","v":0}]
["0309002","Acido delta aminolevulínico",0]
["0309003","Acido fenilpirúvico (PKU, cualitativo)",0]
["0309004","Acido úrico cuantitativo",0]
["0309005","Acido 5 hidroxiindolacético cuantitativo",0]
["0309006","Amilasa cuantitativa en orina",0]
["0309007","Aminoácidos (cualitativo) (excepto fenilalanina, PKU)",0]
["0309008","Calcio cuantitativo en orina",0]
["0309009","Cálculo urinario (examen físico y químico)",0]
["0309010","Creatinina cuantitativa en orina",0]
["0309011","Cuerpos cetónicos",0]
["0309012","Electrolitos (sodio, potasio, cloro) c/u en orina",0]
["0309013","Microalbuminuria cuantitativa",0,null,null,133]
["0309014","Embarazo, detección de (cualquier técnica)",0]
["0309040","Fenilquetonuria (PKU), cuantitativo",0]
["0309015","Fósforo cuantitativo en orina",0]
["0309016","Glucosa (cuantitativo) en orina",0]
["0309035","Hemosiderina",0]
["0309017","Hidroxiprolina en orina",0]
["0309018","Melanogenuria (test de cloruro férrico)",0]
["0309019","Mucopolisacáridos",0]
["0309020","Nitrógeno ureico o urea en orina (cuantitativo)",0]
["0309021","Nucleótidos cíclicos (CAMP, CGM, u otros) c/u",0]
["0309022","Orina completa, (incluye cód. 03-09-023 y 03-09-024)",0,null,null,288]
["0309023","Orina, físico-químico (aspecto, color, densidad, pH, proteínas, glucosa, cuerpos cetónicos, urobilinógeno, bilirrubina, hemoglobina y nitritos) todos o cada uno de los parámetros (proc. aut.)",0]
["0309024","Orina, sedimento (proc. aut.)",0]
["0309025","Osmolalidad",0]
["0309027","Porfirinas, c/u",0]
["0309028","Proteína (cuantitativa) en orina",0]
["0309029","Proteínas de Bence-Jones prueba térmica",0]
["TOTAL",null,{"$f":"SUM(C364:C393)","v":0},{"$f":"SUM(D364:D393)","v":0},{"$f":"SUM(E364:E393)","v":0},{"$f":"SUM(F364:F393)","v":421}]
["TOTAL EXÁMENES",null,{"$f":"+C98+C169+C177+C236+C316+C362+C394","v":0},{"$f":"+D98+D169+D177+D236+D316+D362+D394","v":0},{"$f":"+E98+E169+E177+E236+E316+E362+E394","v":0},{"$f":"+F98+F169+F177+F236+F316+F362+F394","v":2910}]
["EXÁMENES RADIOLÓGICOS"]
["0401001","Radiografía de las glándulas salivales \"sialografía\"",{"$f":"SUM(D397:E397)","v":0}]
["0401002","Radiografía de partes blandas, laringe lateral, cavum rinofaríngeo (rinofarinx). ",0]
["0401003","Planigrafías laringe  (4 EXP.)                     ",0]
["0401004","Radiografía de tórax, proyección complementaria (oblicuas, selectivas u otras)",0]
["0401005","Tórax, proyección complementaria de corazón (oblicuas u otras) (1 exp.) c/u       ",0]
["0401006"," Estudio radiológico de corazón (incluye fluoroscopía, telerradiografías frontal y lateral con esofagograma) ",0]
["0401007"," Planigrafia localizada (incluye mínimo 6 cortes) (6 exp.)     ",0]
["0401008","Radiografía de tórax  frontal o lateral con equipo móvil fuera del departamento de rayos.",0]
["0401009","Radiografía de tórax simple frontal o lateral ",0]
["0401070","Radiografía de tórax frontal y lateral",0]
["0401010","Mamografía bilateral",{"$f":"SUM(D407:E407)","v":0}]
["0401110","Mamografía unilateral",{"$f":"SUM(D408:E408)","v":0}]
["0401130","Mamografía proyección complementaria  (axilar u otras)",0]
["0401011","Marcación preoperatoria de lesiones de la mama",0]
["0401012","Radiografía de mama, pieza operatoria",0]
["0401013","Radiografía de Abdomen Simple",0]
["0401014","Radiografía de abdomen simple, proyección complementaria (lateral y/o oblicua)",0]
["0401015","Colangiografía intra o postoperatoria (por sonda T, o similar)",0]
["0401016","Colangiografía medica con planigrafía (6 exp.)        ",0]
["0401017","Colecistografía c/s seriografía (34 exp.)                ",0]
["0401018","Enema baritado del colon (incluye llene y control post-vaciamiento)",0]
["0401019","Enema baritado del colon o intestino delgado, doble contraste",0]
["0401020","Esofagograma  (incluye pesquisa de cuerpo extraño) (proc.aut.)",0]
["0401021","Radiografía de esófago, estómago y duodeno, relleno y/o doble contraste ",0]
["0401022","Estudio radiológico de deglución faríngea",0]
["0401023","Estudio radiológico del intestino delgado",0]
["0401024","Radiografía de esófago, estómago y duodeno, simple en niños ",0]
["0401026","Pielografía de eliminación con control minutado (10 exp.)",0]
["0401027","Pielografía de eliminación o descendente: incluye renal y vesical simples previas, 3 placas post inyección de medio de contraste, controles de pie y cistografía pre y post miccional. ",0]
["0401028","Radiografía renal simple (proc. aut.)",0]
["0401029","Radiografía vesical simple o perivesical (proc. aut.)",0]
["0401030","Radiografía agujeros ópticos, ambos lados",0]
["0401031","Radiografía de cavidades perinasales, órbitas, articulaciones temporomandibulares, huesos propios de la nariz, malar, maxilar, arco cigomático y cara",0]
["0401032","Radiografía de cráneo frontal y lateral",0]
["0401033","Radiografía de Cráneo  proyección especial de  base de cráneo (Towne)",0]
["0401034","Radiografía de globo ocular, estudio de cuerpo extraño",0]
["0401035","Radiografía de oído, uno o ambos ",0]
["0401036","Radiografía de oído, uno o ambos (2 proy.) (2 exp.)                     ",0]
["0401037","Radiografía de oído, uno o ambos (3 proy.) (3 exp.)                    ",0]
["0401038","Planigrafía de oidos (68 exp.)                     ",0]
["0401039","Planigrafía silla turca, canal optico, cavidades perinasales, c/u (68 exp.)  ",0]
["0401040","Radiografía de silla turca frontal y lateral ",0]
["0401041","Planigrafía localizada (cervical, dorsal o lumbosacra) (68 exp.)              ",0]
["0401042","Radiografía de columna cervical o atlas-axis (frontal y lateral)",0]
["0401043","Radiografía de columna cervical (frontal, lateral y oblicuas)",0]
["0401044","Radiografía de columna cervical  flexión y  extensión (Dinámicas)",0]
["0401045","Radiografía de columna dorsal o dorsolumbar localizada, parrilla costal adultos (frontal y lateral).",0]
["0401046","Radiografía columna lumbar o lumbosacra   ",0]
["0401047","Radiografía columna lumbar o lumbosacra  flexión y  extensión (Dinámicas)",0]
["0401048","Radiografía columna lumbar o lumbosacra, oblicuas adicionales ",0]
["0401049","Radiografía de columna total, panorámica con folio graduado  frontal o lateral",0]
["0401051","Radiografía de pelvis, cadera o coxofemoral",0]
["0401151","Radiografía de pelvis, cadera o coxofemoral de RN, lactante o niño menor de 6 años.",0]
["0401052","Radiografía de pelvis, cadera o coxofemoral, proyecciones especiales; (rotación interna, abducción, lateral, Lawenstein u otras)",0]
["0401053","Radiografía de Sacrocoxis o articulaciones sacroilíacas.",0]
["0401054","Radiografía de brazo, antebrazo, codo, muñeca, mano, dedos, pie  (frontal y lateral)",0]
["0401055","Radiografía de clavícula.",0]
["0401056","Radiografía Edad Ósea: carpo y mano ",0]
["0401057","Radiografía Edad ósea : rodilla frontal",0]
["0401058","Estudio radiológico de escafoides",0]
["0401059","Estudio radiológico de muñeca o tobillo frontal lateral y oblicuas",0]
["0401060","Radiografía de hombro, fémur, rodilla, pierna, costilla o esternón Frontal y Lateral",0]
["0401061","Planigrafía ósea frontal y/o lateral (6 exp.) ",0]
["0401062","Radiografía de Proyecciones especiales oblicuas u otras en hombro, brazo, codo, rodilla, rótulas, sesamoideos, axial de ambas rótulas o similares",0]
["0401063","Radiografía de túnel intercondíleo o radio-carpiano",{"$f":"SUM(D461:E461)","v":0}]
["0401064","Apoyo fluoroscópico a procedimientos intraoperatorios y/o biopsia (no incluye el proc.)",0]
["0404002","Ecografía obstétrica",2,0,2]
["0404003","Ecografía abdominal (incluye hígado, vía biliar, vesícula, páncreas, riñones, bazo, retroperitoneo y grandes vasos)",0]
["0404004","Ecografía como apoyo a cirugía, o a procedimiento (de tórax, muscular, partes blandas, etc.)",0]
["0404005","Ecografía transvaginal o transrectal",0]
["0404006","Ecografía ginecológica, pelviana femenina u obstétrica con estudio fetal",5,0,5]
["0404007","Ecografía transvaginal para seguimiento de ovulación, procedimiento completo (6-8 sesiones )",0]
["0404008","Ecografía para seguimiento de ovulación, procedimiento completo (6 a 8 sesiones)",0]
["0404009","Ecografía pélvica masculina (incluye vejiga y próstata)",0]
["0404010","Ecografía renal (bilateral), o de bazo",0]
["0404011","Ecografía encefálica (RN o lactante)",0]
["0404012","Ecografía mamaria bilateral (incluye Doppler)",0]
["0404013","Ecografía ocular, uno o ambos ojos.",0]
["0404014","Ecografía testicular (uno o ambos) (Incluye Doppler)",0]
["0404015","Ecografía tiroidea (Incluye Doppler)",0]
["0404016","Ecografía vascular periférica, articular o de partes blandas",{"$f":"SUM(D477:E477)","v":0}]
["0404018","Ecotomografía vascular periférica (bilateral), cervical (bilateral), abdominal o de otros órganos con doppler duplex                 ",0]
["0404019","Ecotomografía vascular periférica (bilateral), cervical (bilateral), abdominal o de otros órganos con doppler color                ",{"$f":"SUM(D479:E479)","v":0}]
["SECCIÓN B: PROCEDIMIENTOS APOYO CLÍNICO Y TERAPÉUTICO"]
["CÓDIGOS","PROCEDIMIENTOS","TOTAL","SAPU/SAR/SUR","NO SAPU/ NO SUR","FUNCIONARIO",null,"COMPRAS DE SERVICIOS"]
[null,null,null,null,null,"MÉDICO","OTRO"]
["NEUROLOGÍA"]
[1101003,"Lumbar c/s manometria c/s queckensted   ",{"$f":"SUM(D484:E484)","v":0}]
["OFTALMOLOGÍA"]
[1201003,"cuantificacion de lagrimacion (test de   schirmer),  uno o                  ",{"$f":"SUM(D486:E486)","v":0}]
[1201004,"curva de tension aplanatica (por cada dia), c/ojo                                ",{"$f":"SUM(D487:E487)","v":0}]
[1201005,"diploscopia cuantitativa, ambos ojos                                                      ",0]
[1201009,"exploracion sensoriomotora: estrabismo, estudio completo ,               ",0]
[1201012,"retinografia, ambos ojos                                                                           ",0]
[1201014,"tonometria ocular, cualquier tecnica, c/ojo                                            ",0]
[1201015,"tratamiento ortoptico y/ o pleoptico (por sesion) ,                               ",0]
[1201019," Exploracion vitreorretinal, ambos ojos                                                       ",0]
[1201029,"Cuerpo extrano conjuntival y/o corneal en adultos                                 ",{"$f":"SUM(D494:E494)","v":0}]
[1201042,"Campimetría computarizada, c/ojo (excluye UAPO)                            ",{"$f":"SUM(D495:E495)","v":0}]
[1201042,"Campimetría computarizada, c/ojo (en UAPO)                                  ",{"$f":"SUM(D496:E496)","v":0}]
["TOTAL",null,{"$f":"SUM(C486:C496)","v":0},{"$f":"SUM(D486:D496)","v":0},{"$f":"SUM(E486:E496)","v":0},{"$f":"SUM(F486:F496)","v":0},{"$f":"SUM(G486:G496)","v":0},{"$f":"SUM(H486:H496)","v":0}]
["OTORRINOLARINGOLOGÍA"]
[1301025,"Taponamiento nasal anterior (proc. aut.)",{"$f":"SUM(D499:E499)","v":0}]
[1301026,"Taponamiento nasal posterior",0]
[1301029,"Cuerpo extraño en fosas nasales, extraccion en adultos        ",0]
[1301030,"Cuerpo extraño en fosas nasales, extraccion en niños        ",0]
[1301042,"Trompa de eustaquio, insuflacion instrumental (proc. Aut.) en adultos                                                                             ",0]
[1301043,"Trompa de eustaquio, insuflacion instrumental (proc. Aut.) en ninos                                                                                     ",0]
["TOTAL",null,{"$f":"SUM(C499:C504)","v":0},{"$f":"SUM(D499:D504)","v":0},{"$f":"SUM(E499:E504)","v":0},{"$f":"SUM(F499:F504)","v":0},{"$f":"SUM(G499:G504)","v":0},{"$f":"SUM(H499:H504)","v":0}]
["DERMATOLOGÍA Y TEGUMENTOS"]
[1601110,"Curetaje de lesiones virales o similares hasta 10 lesiones                          ",{"$f":"SUM(D507:E507)","v":0}]
[1601115,"Implantes Subcutáneos, instalación o retiro",{"$f":"SUM(D508:E508)","v":0}]
["TOTAL",null,{"$f":"SUM(C507:C508)","v":0},0,0,0,0,0]
["CARDIOLOGÍA"]
["1701001","Electrocardiograma",{"$f":"SUM(D511:E511)","v":79},0,79,0,79]
["1701006","E.C.G. Continuo (test holter o similares, por ej. variabilidad de la frecuencia cardiaca y/o alta resolución  del st y/o despolarización tardía);20 a 24 horas de registro                                                                         ",{"$f":"SUM(D512:E512)","v":0}]
["1701009","Monitoreo continuo de presión arterial",{"$f":"SUM(D513:E513)","v":15},null,15,null,15]
["TOTAL",null,{"$f":"SUM(C511:C513)","v":94},{"$f":"SUM(D511:D513)","v":0},94,0,94,{"$f":"SUM(H511:H513)","v":0}]
["NEUMOLOGÍA"]
[1707001,"Espirometría Basal                                                                                       ",{"$f":"SUM(D516:E516)","v":0}]
[1707002,"Espirometria basal y con broncodilatador                                                         ",{"$f":"SUM(D517:E517)","v":0}]
[1707004,"Test de provocacion con ejercicio                                                                      ",{"$f":"SUM(D518:E518)","v":0}]
[1707030,"Aerosolterapia (Nebulización)    ",{"$f":"SUM(D519:E519)","v":0}]
["TOTAL",null,{"$f":"SUM(C516:C519)","v":0},{"$f":"SUM(D516:D519)","v":0},{"$f":"SUM(E516:E519)","v":0},{"$f":"SUM(F516:F519)","v":0},{"$f":"SUM(G516:G519)","v":0},{"$f":"SUM(H516:H519)","v":0}]
["GASTROENTEROLOGÍA"]
[1801023,"Intubacion con sonda gastrica                                                                ",{"$f":"SUM(D522:E522)","v":0}]
[1801042,"Vaciamiento manual de fecaloma                                                                   ",{"$f":"SUM(D523:E523)","v":0}]
[1801001,"Gastroduodenoscopía (incluye esofagoscopía)                                                      ",{"$f":"SUM(D524:E524)","v":0}]
["TOTAL",null,{"$f":"SUM(C522:C524)","v":0},0,0,0,0,0]
["UROLOGÍA"]
[1901019,"Instilacion vesical (incluye colocacion de sonda) proc. Aut.                                      ",{"$f":"SUM(D527:E527)","v":0}]
[1901022,"Vac. Vesical por sonda uretral, (proc. Aut.)                                                    ",{"$f":"SUM(D528:E528)","v":0}]
["TOTAL",null,{"$f":"SUM(C527:C528)","v":0},{"$f":"SUM(D527:D528)","v":0},0,0,0,0]
["GINECOLOGÍA"]
[2001015,"Colocación o extracción de dispositivo intrauterino (no incluye el valor del dispositivo)                    ",{"$f":"SUM(D531:E531)","v":0}]
["ORTOPEDIA Y TRAUMATOLOGÍA"]
[2101001,"Infiltracion local medicamentos (bursas, tendones, yuxtaarticulares y/o intraarticulares",{"$f":"SUM(D533:E533)","v":0}]
[2101002,"Procedimiento para exploraciones radiologicas (incluye maniobra e inyeccion del medio de contraste)  BM18A  Revisar en BM Colocación valva",{"$f":"SUM(D534:E534)","v":0}]
[2106005,"Rodillera, bota larga o corta de yeso",{"$f":"SUM(D535:E535)","v":0}]
[2106007,"Velpeau",0]
[2106006,"Yeso antebraquial c/s ferula digital",0]
[2106004,"Yeso braquicarpiano",0]
[2107003,"Luxaciones de articulaciones menores (el resto)      ",0]
["TOTAL",null,{"$f":"SUM(C533:C539)","v":0},{"$f":"SUM(D533:D539)","v":0},0,0,0,0]
[" SECCIÓN C: INTERVENCIONES QUIRÚRGICAS MENORES"]
[1602201,"Biopsia de piel y/o mucosa por curetaje o sección tangencial c/s electro x 1 sesion        ",{"$f":"SUM(D542:E542)","v":0},0,0,0,0]
[1602202,"Extirpacion de, reparacion o biopsia total o parcial, de lesiones benignas cutáneas por excision cabeza, cuello, genitales, hasta 3 lesiones                                                                  ",0,0,0,0,0]
[1602203,"Extirpacion de, reparacion o biopsia total o parcial, de lesiones benignas cutáneas por excision resto de cuerpo hasta 3 lesiones                                                                              ",14,0,14,14,0]
[1602204,"Extirpacion de, reparacion o biopsia total o parcial, de lesiones benignas cutáneas por excision cabeza, cuello, genitales, desde 4 hasta 6 lesiones                                              ",0,0,0,0,0]
[1602205,"Extirpacion de, reparacion o biopsia total o parcial, de lesiones benignas cutáneas por excision resto de cuerpo desde 4 hasta 6 lesiones                                                             ",0,0,0,0,0]
[1602206,"Extirpacion de lesiones benignas por sec tangencial ,curetaje,y/o fulguracion hasta 15 lesiones   ",1,0,1,1,0]
[1602207,"Tratamiento por electro de hemangiomas o telangectasias hasta 15 lesiones",0,0,0,0,0]
[1602211,"Cabeza, cuello, genitales: tratamiento quirúrgico de tumor maligno por escisión total o parcial, con o sin sutura, por cada lesión o melanoma cualquier localización",0,0,0,0,0]
[1602212,"Resto del cuerpo: tratamiento quirúrgico de tumor maligno por escisión total o parcial, con o sin sutura, por cada lesión",0,0,0,0,0]
[1602213,"Cabeza, cuello, genitales o melanoma cualquier ubicación: ampliación de márgenes quirúrgicos de tumor maligno extirpado previamente ",0,0,0,0,0]
[1602214,"Resto del cuerpo: ampliación de márgenes quirúrgicos de tumor maligno extirpado prevíamente",0,0,0,0,0]
[1602215,"Tumores vasculares profundos cara, cuero cabelludo, cuello, genitales",0,0,0,0,0]
[1602216,"Tumores vasculares profundos resto del cuerpo",0,0,0,0,0]
[1602221,"Herida cortante o contusa complicada, reparación y sutura (más de 5 cm)",0,0,0,0,0]
[1602222,"Herida cortante o contusa NO complicada, reparacion y sutura (una o multiples de mas de 5 cms de largo total y/o que comprometa solo piel)                                                                             ",0,0,0,0,0]
[1602223,"Cabeza, cuello, genitales: extirpación de lesión benigna subepidérmica, incluye tumor sólido, quiste epidérmico y lipoma por lesión ",{"$f":"SUM(D557:E557)","v":0},0,0,0,0]
[1602224,"Resto del cuerpo: extirpación de lesión benigna subepidérmica, incluye tumor sólido, quiste epidérmico y lipoma por lesión ",0,0,0,0,0]
[1602225,"Vaciamiento y curetaje quirurgico de lesiones quistica o abscesos                              ",0,0,0,0,0]
[1602231,"Onisectomia total o parcial simple                                                                                      ",0,0,0,0,0]
[1602232,"Cirugia reparadora ungueal por proceso inflamatorio                                                                 ",10,0,10,10,0]
[1602233,"Correccion quirurgica de defecto congenito o por tumor ungueal",0,0,0,0,0]
[1602240,"Curacion por medico, quemadura o similar menor al 5% superficie corporal en pabellon       ",0,0,0,0,0]
[1602241,"Curacion por medico, quemadura o similar  5 a 10% superficie corporal en pabellon        ",0,0,0,0,0]
[1602242,"Curacion por medico, quemadura o similar  mayor  al 10% superficie corporal en pabellon",0,0,0,0,0]
["TOTAL",null,{"$f":"SUM(C542:C565)","v":25},{"$f":"SUM(D542:D565)","v":0},{"$f":"SUM(E542:E565)","v":25},25,0,0]
["SECCIÓN D: MISCELÁNEOS"]
["0106002","Curación simple ambulatoria",{"$f":"SUM(D568:E568)","v":497},0,497,0,497]
["0106005","Autocontrol pacientes Diabetico insulino dependiente (D.I.D. mensual)",{"$f":"SUM(D569:E569)","v":0},0,0,0,0]
["0106006","Oxigenoterapia domiciliaria (pacientes oxígeno dependientes)",0,0,0,0,0]
["0106017","Curación compleja",100,0,100,0,100]
["0106007","Extracción cuerpo extraño ojo",0,0,0,0,0]
["0106008","Extracción cuerpo extraño otro lugar",0,0,0,0,0]
["0106009","Lavado gástrico",0,0,0,0,0]
["0106010","Lavado oído",11,0,11,0,11]
["0106011","Técnicas reanimación cardiopulmonar básico",0,0,0,0,0]
["0106012","Técnicas reanimación cardiopulmonar avanzado",0,0,0,0,0]
["0106013","Aseo ocular",{"$f":"SUM(D578:E578)","v":0},0,0,0,0]
["0106014","Administración inyecciones",53,0,53,0,53]
["0106015","Administración fleboclisis",7,0,7,0,7]
["0106020","Administración oxigeno",0,0,0,0,0]
["0106021","Aspiración secreciones",0,0,0,0,0]
["0106022","Instalación sonda",{"$f":"SUM(D583:E583)","v":0},0,0,0,0]
[null,"Procedimientos de podología",{"$f":"SUM(D584:E584)","v":117},0,117,0,117]
["TOTAL",null,{"$f":"SUM(C568:C584)","v":785},0,785,0,785,0]
["CÓDIGOS","OTROS PROCEDIMIENTOS","TOTAL","SAPU/SAR/SUR","NO SAPU/ NO SUR","COMPRAS DE SERVICIOS"]
[]
["0307011","Toma de muestra de sangre venosa en adultos",{"$f":"SUM(D588:E588)","v":1},null,1]
["0307012","Toma de muestra de sangre venosa en niños y lactantes",{"$f":"SUM(D589:E589)","v":57},null,57]
["TOTAL",null,{"$f":"SUM(C588:C589)","v":58},{"$f":"SUM(D588:D589)","v":0},58,0]
["SECCIÓN E: OTROS EXÁMENES Y PROCEDIMIENTOS  DE APOYO CLÍNICO Y TERAPEUTICO (SIN CÓDIGO EN ARANCEL)"]
["EXÁMENES Y/O PROCEDIMIENTO",null,"TOTAL","SAPU/SAR/SUR","NO SAPU/ NO SUR","FUNCIONARIO",null,"COMPRAS DE SERVICIOS"]
[null,null,null,null,null,"MÉDICO","OTRO"]
["Toma agudeza visual (ambos ojos)",null,{"$f":"SUM(D594:E594)","v":0},0,0,0,0]
["Autorrefractomia",null,{"$f":"SUM(D595:E595)","v":0},0,0,0,0]
["Lensometria",null,0,0,0,0,0]
["Paquimetria Ultrasónica",null,0,0,0,0,0]
["Paquimetria óptica",null,0,0,0,0,0]
["Tomografía coherencia óptica",null,0,0,0,0,0]
["Inyeccion intravitrea avastin",null,0,0,0,0,0]
["Insercion Implante Anticonceptivo",null,7,0,7,0,7]
["Remocion Implante Anticonceptivo",null,8,0,8,0,8]
["Insercion Pellets subcutáneo",null,0,0,0,0,0]
["Hemoglocotest instantaneo ",null,0,0,0,0,0]
["Radiografía de pelvis, cadera o coxofemoral de 1er screening  (entre 3 -6 meses)",null,0,0,0,0,0]
["Cartridge para Troponina",null,0,0,0,0,0]
["Cartridge Multiple",null,0,0,0,0,0]
["TOTAL",null,{"$f":"SUM(C594:C607)","v":15},{"$f":"SUM(D594:D607)","v":0},{"$f":"SUM(E594:E607)","v":15},0,15,0]

{"sheet":"Control","index":3,"n_rows":80,"n_cols":4,"rows_kept":80,"cut":false,"hidden":false,"merged":[]}
[]
[null,"HOJA","SECCION","Nº Errores"]
[null,"NOMBRE","Código comuna",{"$f":"+NOMBRE!AG2","v":0}]
[null,"NOMBRE","Código establecimiento/estrategia",{"$f":"+NOMBRE!AG3","v":0}]
[null,"NOMBRE","Tipo establecimiento/estrategia",{"$f":"+NOMBRE!AG4","v":0}]
[null,"NOMBRE","Dependencia",{"$f":"+NOMBRE!AG5","v":0}]
[null,"NOMBRE","Código Mes",{"$f":"+NOMBRE!AG6","v":0}]
[null,"B18","SECCIÓN D : INTERVENCIONES QUIRÚRGICAS MENORES POR EDAD",{"$f":"SUM('BM18'!V66:V68)","v":0}]
[null,null,"TOTAL ERRORES",{"$f":"SUM(D3:D8)","v":0}]
[]
[]
[]
[null,"¿Nombre vacío?"]
[null,{"$f":"ISBLANK(NOMBRE!B2)","v":false}]
[]
[]
[]
[]
[]
[]
[]
[]
[]
[]
[]
[]
[]
[]
[]
[]
[]
[]
[]
[]
[]
[]
[]
[]
[]
[]
[]
[]
[]
[]
[]
[]
[]
[]
[]
[]
[]
[]
[]
[]
[]
[]
[]
[]
[]
[]
[]
[]
[]
[]
[]
[]
[]
[]
[]
[]
[]
[]
[]
[]
[]
[]
[]
[]
[]
[null,null,null,{"$f":"SUM(D3:D7)","v":0}]

{"sheet":"MACROS","index":4,"n_rows":10,"n_cols":2,"rows_kept":10,"cut":false,"hidden":false,"merged":[[0,0,0,13],[9,1,10,7]]}
["Hoja de Macros y Utilidades"]
[{"$f":"CONCATENATE(\"ESTABLECIMIENTO/ESTRATEGIA: \",[1]NOMBRE!B3,\" - \",\"( \",[1]NOMBRE!C3,[1]NOMBRE!D3,[1]NOMBRE!E3,[1]NOMBRE!F3,[1]NOMBRE!G3,[1]NOMBRE!H3,[1]NOMBRE!I3,\" )\")","v":"ESTABLECIMIENTO/ESTRATEGIA:  - ( Falta Cód. Estab. )"}]
[]
[null,"DESPROTEGER HOJAS"]
[]
[null,"PROTEGER HOJAS"]
[]
[null,"CREA UNA COPIA  DEL ARCHIVO  (TRANFORMA HOJAS A VALORES)\nA ESTE NUEVO ARCHIVO DEBERÁ ASIGNARLE UN NOMBRE"]
[null,"Contraseña para copia del archivo :DEIS"]
[null,"REVISE LA HOJA CONTROL, EXISTEN ERRORES"]